lending/lending_fUSD_20250408
["ID","MTS","AMOUNT","RATE_DAILY","PERIOD"]
[357526312,1744126246859,-499.999999,0.0002488,7]
[357526314,1744126246869,-151.52,0.0002489,2]
[357526316,1744126246879,-300.0,0.00024899,10]
[357526318,1744126246888,-52554.98398399,0.000249,2]
[357526350,1744126251305,463.01,0.00042943,30]
[357526351,1744126438842,2000.0,0.00027397,30]
[357526352,1744126833095,-151.0,0.000232,7]
[357526353,1744126833116,-151.0,0.000232,7]
[357526354,1744126894717,-219.412904,0.00024,7]
[357526355,1744126949663,-1155.82662,0.00024775,2]
[357526356,1744126949696,-187.41582309,0.000249,2]
[357526357,1744126949729,-151.0,0.000249,7]
[357526358,1744126949761,-770.97986869,0.00025,2]
[357526359,1744126949793,-256.19117391,0.00025,2]
[357526360,1744126949826,-620.96430797,0.00025,2]
[357526361,1744126949861,-1757.43938991,0.00025,2]
[357526362,1744126949893,-10100.18281643,0.0002501,2]
[357526363,1744127051429,-200.0,0.0002481,2]
[357526364,1744127051457,-10800.0,0.0002501,2]
[357526365,1744127112245,719030.0,0.00042936,30]
[357526370,1744127271657,2500.0,0.00042936,30]
[357526378,1744127403999,345070.97250555,0.00033,120]
[357526382,1744127432331,-401.69,0.00024355,2]
[357526383,1744127432341,-1062.04880604,0.00025009,2]
[357526384,1744127432350,-3918.77524923,0.0002501,2]
[357526416,1744127438162,-530.2981892,0.0002501,2]
[357526417,1744127438425,-392.99,0.0002501,2]
[357526419,1744127438561,-80.26641931,0.0002501,2]
[357526422,1744127438573,-6139.99999999,0.0002501,2]
[357526432,1744127438670,-67037.48732584,0.0002501,2]
[357526434,1744127438681,-500.0,0.00025317,2]
[357526436,1744127438691,-500.0,0.00025317,2]
[357526438,1744127438700,-500.0,0.00025317,2]
[357526440,1744127438710,-500.0,0.00025317,2]
[357526442,1744127438720,-573.01332507,0.00025317,2]
[357526444,1744127438730,-200.0,0.00025831,7]
[357526446,1744127438740,-2000.0,0.00025895,2]
[357526448,1744127438749,-1000.0,0.00025911,2]
[357526450,1744127438759,-4433.65,0.00026,2]
[357526452,1744127438768,-282.11,0.00026027,2]
[357526454,1744127438778,-175.63,0.00026163,2]
[357526456,1744127438788,-150.0,0.00026199,2]
[357526458,1744127438797,-23900.0,0.00026286,2]
[357526460,1744127438807,-250.0,0.00026371,2]
[357526462,1744127438817,-401.69,0.00026619,2]
[357526464,1744127438827,-272.85,0.00026849,2]
[357526466,1744127438836,-208.72,0.00026849,2]
[357526468,1744127438845,-800.0,0.000269,9]
[357526470,1744127438854,-250.0,0.00027,2]
[357526472,1744127438863,-907.48422657,0.00027296,2]
[357526474,1744127438873,-500.0,0.00027373,2]
[357526476,1744127438883,-3638.37575577,0.00027387,2]
[357526541,1744127440405,-23809.97468433,0.00027387,2]
[357526546,1744127440446,-1572.75177808,0.00027387,2]
[357526549,1744127440707,-15359.3198734,0.00027387,2]
[357526559,1744127443978,-451.06337042,0.00027387,2]
[357526561,1744127446438,-39323.58,0.00027387,2]
[357526562,1744127446450,-1461.89803126,0.00027387,2]
[357526563,1744127446590,-83.21120718,0.00027387,2]
[357526564,1744127446642,-386.70499981,0.00027387,2]
[357526579,1744127616583,50000.0,0.00042941,30]
[357526580,1744127619654,250.0,0.00019,2]
[357526582,1744127620160,50000.0,0.00042941,31]
[357526583,1744127623927,50000.0,0.00042941,32]
[357526584,1744127627526,50000.0,0.00042941,33]
[357526585,1744127630651,50000.0,0.00042941,34]
[357526586,1744127643122,150.0,0.00042941,30]
[357526587,1744127665927,4811.32626934,0.00042941,31]
[357526588,1744127709368,150.0,0.00042941,30]
[357526589,1744127791180,1018.15028277,0.00042941,120]
[357526590,1744127896444,476.12038978,0.00042941,120]
[357526591,1744127900363,240.08,0.00032,120]
[357526592,1744127929329,234.30471941,0.00042941,120]
[357526593,1744127982712,10009.96,0.0003,30]
[357526597,1744128391569,9976.806399,0.00042936,30]
[357526607,1744128632531,-361.52,0.00024556,2]
[357526608,1744128632540,-53.48,0.00026517,2]
[357526609,1744128632552,-8500.0,0.00026517,2]
[357526610,1744128632564,-756.79311258,0.00026517,2]
[357526611,1744128632575,-488.85575651,0.00026517,2]
[357526802,1744128641117,-7685.73147169,0.00026517,2]
[357526879,1744128927721,158.85528286,0.00042936,30]
[357526880,1744129122322,150.0,0.00018904,2]
[357526881,1744129126840,2134.17,0.00042936,60]
[357526882,1744129173806,150.0,0.00018904,2]
[357526883,1744129191883,11292.5123218,0.00042936,30]
[357526884,1744129258781,7935.8238,0.00042936,30]
[357526885,1744129545149,1000.0,0.00042936,30]
[357526886,1744129545781,790.51995398,0.00042936,30]
[357526888,1744129576185,3933.6766769,0.00042936,120]
[357526890,1744129631479,374.56592644,0.00015,2]
[357526898,1744129717202,-300.0,0.000198,7]
[357526902,1744129725819,-300.0,0.000198,7]
[357526915,1744129812256,-200.0,0.000198,7]
[357526918,1744129831482,-308.41154422,0.00019873,2]
[357526920,1744129831492,-1600.0,0.000199,7]
[357526922,1744129831501,-2005.93845578,0.000199,2]
[357526925,1744129831588,-759.19999999,0.000199,2]
[357526926,1744129831645,-589.47196682,0.000199,2]
[357526927,1744129831719,-7406.58200194,0.000199,2]
[357526928,1744129831728,-411.71799806,0.00019973,2]
[357526929,1744129831756,-88.28200194,0.00019973,2]
[357526931,1744129831765,-500.0,0.00019973,2]
[357526933,1744129831773,-192.06799806,0.00019973,2]
[357526948,1744129838086,-307.93200194,0.00019973,2]
[357526949,1744129838098,-150.0,0.00019998,2]
[357526950,1744129838110,-284.62679002,0.00019999,2]
[357526951,1744129838122,-500.0,0.00019999,2]
[357526952,1744129838134,-500.0,0.00019999,2]
[357526953,1744129838145,-310.30265609,0.00019999,2]
[357526954,1744129838158,-500.0,0.00019999,2]
[357526955,1744129838170,-500.0,0.00019999,2]
[357526956,1744129838182,-500.0,0.00019999,2]
[357526957,1744129838194,-500.0,0.00019999,2]
[357526958,1744129838206,-500.0,0.00019999,2]
[357526959,1744129838218,-42983.95393996,0.00019999,2]
[357526960,1744129838232,-33167.7938154,0.00019999,2]
[357526961,1744129838244,-14413.37850961,0.0002,2]
[357526962,1744129838268,-597.79717,0.0002,2]
[357526970,1744129839820,-78052.222005,0.0002,2]
[357526971,1744129839983,-1155.69101898,0.0002,2]
[357526972,1744129840117,-1497.7826597,0.0002,2]
[357526973,1744129840148,-1350.07623857,0.0002,2]
[357527025,1744129842811,-6772.67888861,0.0002,2]
[357527026,1744129842823,-293.3720234,0.0002,2]
[357527027,1744129843192,-5396.71,0.0002,2]
[357527040,1744129845603,-1189.911111,0.0002,2]
[357527041,1744129845675,-304.84721717,0.0002,2]
[357527042,1744129845751,-110022.13396204,0.0002,2]
[357527043,1744129845763,-285.56665977,0.0002,2]
[357527044,1744129845812,-702.51549272,0.0002,2]
[357527045,1744129845867,-3399.37802863,0.0002,2]
[357527050,1744130014567,172.69,0.00026555,120]
[357527051,1744130014816,172.69,0.00029506,120]
[357527053,1744130280479,150.0,0.00019098,2]
[357527056,1744130356935,292.0,0.00019098,2]
[357527057,1744130389778,150.0,0.00019098,2]
[357527059,1744130625842,1462.79,0.00043071,30]
[357527062,1744130741458,-172.69,0.00032457,120]
[357527063,1744130741525,-500.0,0.00032876,120]
[357527064,1744130741551,-500.0,0.00032876,120]
[357527065,1744130741577,-500.0,0.00032876,120]
[357527066,1744130741603,-500.0,0.00032876,120]
[357527067,1744130741629,-500.0,0.00032876,120]
[357527068,1744130741654,-500.0,0.00032876,120]
[357527069,1744130741680,-500.0,0.00032876,120]
[357527070,1744130741708,-500.0,0.00032876,120]
[357527071,1744130741734,-500.0,0.00032876,120]
[357527072,1744130741762,-156.47564726,0.00032876,120]
[357527073,1744130741798,-2500192.87599368,0.00033,120]
[357527074,1744130741882,-167.328432,0.00035,40]
[357527075,1744130741911,-2185.0,0.00035,120]
[357527076,1744130741950,-1796.57,0.00035207,41]
[357527077,1744130741984,-172.69,0.00035407,120]
[357527078,1744130742015,-500.0,0.00035616,120]
[357527079,1744130742046,-535.97,0.00035671,120]
[357527080,1744130742083,-150.0,0.00036,120]
[357527081,1744130742112,-1800.0,0.00036,37]
[357527082,1744130742142,-155.040811,0.00036498,120]
[357527083,1744130742172,-155.040811,0.00036648,120]
[357527084,1744130742203,-165.7068234,0.00036727,30]
[357527085,1744130742233,-159.97808043,0.00036727,120]
[357527086,1744130742261,-166.33504803,0.00036727,120]
[357527087,1744130742289,-155.040818,0.00036848,120]
[357527088,1744130742317,-486713.2575352,0.000369,120]
[357527089,1744130747739,-525208.8624648,0.000369,120]
[357527090,1744130747769,-1800.0,0.00037,38]
[357527091,1744130747796,-1700.0,0.00037043,60]
[357527092,1744130747826,-2471.96082804,0.000372,103]
[357527093,1744130747855,-2471.96082802,0.000372,103]
[357527094,1744130747884,-2471.96082802,0.000372,103]
[357527095,1744130747911,-2471.96082802,0.000372,103]
[357527096,1744130747940,-2471.96082802,0.000372,103]
[357527097,1744130747972,-1700.0,0.00037591,60]
[357527098,1744130748003,-150.0,0.000376,120]
[357527099,1744130748039,-392.435317,0.00037877,120]
[357527100,1744130748072,-24531.3039876,0.00038,30]
[357527101,1744130748103,-150.0,0.00038,120]
[357527102,1744130748132,-1800.0,0.00038,39]
[357527103,1744130748160,-1700.0,0.00038139,60]
[357527104,1744130748191,-259116.02087692,0.000384,33]
[357527105,1744130748222,-1700.0,0.00038687,60]
[357527106,1744130748252,-10000.0,0.00039,120]
[357527107,1744130748281,-20000.0,0.00039,30]
[357527108,1744130748309,-1800.0,0.00039,40]
[357527109,1744130748337,-980.516872,0.000396,120]
[357527110,1744130748365,-1700.0,0.00039783,60]
[357527111,1744130748394,-150.0,0.0004,30]
[357527112,1744130748428,-180.0,0.0004,120]
[357527113,1744130748459,-9479.42056717,0.0004,30]
[357527114,1744130748488,-1000.0,0.0004,120]
[357527115,1744130748518,-1800.0,0.0004,41]
[357527116,1744130748545,-5052.54841051,0.0004,30]
[357527117,1744130748572,-136608.29952625,0.0004,30]
[357527118,1744130748599,-4000.0,0.0004,30]
[357527119,1744130748627,-500.0,0.0004,120]
[357527120,1744130748653,-2000.0,0.0004,120]
[357527121,1744130748680,-535.97,0.00040149,120]
[357527122,1744130748712,-208.23,0.000402,120]
[357527123,1744130748742,-1700.0,0.00040879,60]
[357527124,1744130748772,-150.0,0.00040916,120]
[357527125,1744130748802,-500.0,0.00041,120]
[357527126,1744130748832,-1800.0,0.00041,42]
[357527127,1744130748863,-4485.0,0.00041,117]
[357527128,1744130748896,-150.0,0.0004101,120]
[357527129,1744130748928,-170.0,0.00041066,120]
[357527130,1744130748964,-170.0,0.00041076,120]
[357527131,1744130749000,-170.0,0.00041086,120]
[357527132,1744130749032,-151.55658618,0.00041095,30]
[357527133,1744130749065,-518.67882591,0.00041095,120]
[357527134,1744130749095,-517.5651967,0.00041095,120]
[357527135,1744130749127,-152.27412483,0.00041095,120]
[357527136,1744130749164,-854.95,0.00041096,30]
[357527137,1744130749200,-296.0,0.00041096,30]
[357527138,1744130749239,-162.96796277,0.00041233,120]
[357527139,1744130749271,-150.0,0.00041238,120]
[357527140,1744130749303,-500.0,0.0004129,120]
[357527141,1744130749337,-500.0,0.0004129,120]
[357527142,1744130749368,-500.0,0.0004129,120]
[357527143,1744130749401,-500.0,0.0004129,120]
[357527144,1744130749432,-500.0,0.0004129,120]
[357527145,1744130749476,-500.0,0.0004129,120]
[357527146,1744130749507,-500.0,0.0004129,120]
[357527147,1744130749538,-500.0,0.0004129,120]
[357527148,1744130749567,-500.0,0.0004129,120]
[357527149,1744130749596,-501.0,0.0004129,120]
[357527150,1744130749626,-155.040811,0.00041298,120]
[357527151,1744130749656,-150.0,0.00041344,120]
[357527152,1744130749686,-150.0,0.00041381,120]
[357527153,1744130749723,-156.040805,0.00041398,120]
[357527154,1744130749754,-150.0,0.00041424,30]
[357527155,1744130749785,-150.0,0.00041424,30]
[357527156,1744130749814,-215.92065652,0.00041424,30]
[357527157,1744130749844,-150.0,0.00041424,30]
[357527158,1744130749873,-215.92065652,0.00041471,30]
[357527159,1744130749902,-157.040811,0.00041498,120]
[357527160,1744130749929,-150.0,0.00041499,30]
[357527161,1744130749960,-847.0,0.000415,120]
[357527162,1744130749996,-215.92065652,0.00041517,30]
[357527163,1744130750029,-150.0,0.00041522,120]
[357527164,1744130750058,-150.0,0.00041556,30]
[357527165,1744130750086,-215.92065652,0.00041564,30]
[357527166,1744130750112,-150.0,0.00041573,30]
[357527167,1744130750139,-157.040811,0.00041598,120]
[357527168,1744130750167,-215.92065652,0.0004161,30]
[357527169,1744130750194,-150.0,0.00041641,120]
[357527170,1744130750227,-150.0,0.00041647,30]
[357527171,1744130750487,-150.0,0.0004165,120]
[357527172,1744130750515,-215.92065652,0.00041657,30]
[357527173,1744130750541,-170.0,0.0004168,120]
[357527174,1744130750567,-150.0,0.00041687,30]
[357527175,1744130750594,-170.0,0.0004169,120]
[357527176,1744130750622,-155.040811,0.00041698,120]
[357527177,1744130750649,-162.96796277,0.00041699,120]
[357527178,1744130750676,-215.92065652,0.00041703,30]
[357527179,1744130750708,-150.0,0.00041721,30]
[357527180,1744130750735,-150.0,0.00041722,120]
[357527181,1744130750762,-215.92065652,0.0004175,30]
[357527182,1744130750788,-150.0,0.00041778,30]
[357527183,1744130750814,-150.0,0.00041795,30]
[357527184,1744130750841,-215.92065652,0.00041796,30]
[357527185,1744130750867,-155.040811,0.00041798,120]
[357527186,1744130750894,-150.0,0.00041819,30]
[357527187,1744130750921,-215.92065652,0.00041843,30]
[357527188,1744130750950,-150.0,0.0004187,30]
[357527189,1744130750978,-170.0,0.0004187,120]
[357527190,1744130751005,-170.0,0.0004188,120]
[357527191,1744130751032,-215.92065652,0.00041889,30]
[357527192,1744130751059,-170.0,0.0004189,120]
[357527193,1744130751086,-155.040811,0.00041898,120]
[357527194,1744130751115,-150.0,0.00041915,120]
[357527195,1744130751144,-215.92065652,0.00041936,30]
[357527196,1744130751174,-150.0,0.00041944,30]
[357527197,1744130751209,-150.0,0.0004195,30]
[357527198,1744130751237,-1700.0,0.00041975,60]
[357527199,1744130751266,-173.59,0.0004198,120]
[357527200,1744130751295,-215.92065652,0.00041982,30]
[357527201,1744130751324,-170.0,0.0004199,120]
[357527202,1744130751353,-157.040811,0.00041998,120]
[357527203,1744130751382,-900.0,0.00042,120]
[357527204,1744130751408,-339920.30522818,0.00042,30]
[357527205,1744130751439,-150.0,0.00042,120]
[357527206,1744130751472,-777.0,0.00042,40]
[357527207,1744130751502,-1800.0,0.00042,30]
[357527208,1744130751530,-5000.0,0.00042,30]
[357527209,1744130751558,-270.8,0.00042,120]
[357527210,1744130751584,-270.88,0.00042,120]
[357527211,1744130751613,-788.31,0.00042,120]
[357527212,1744130751642,-2000.0,0.00042,120]
[357527213,1744130751669,-1336.82,0.00042,120]
[357527214,1744130751696,-830.02,0.00042,120]
[357527215,1744130751726,-1674.62,0.00042,120]
[357527216,1744130751753,-12163.64,0.00042,120]
[357527217,1744130751781,-150.0,0.00042018,30]
[357527218,1744130751809,-215.92065652,0.00042029,30]
[357527219,1744130751836,-1000.0,0.00042055,30]
[357527220,1744130751863,-445.7,0.00042055,30]
[357527221,1744130751890,-445.7,0.00042055,30]
[357527222,1744130751919,-150.0,0.00042062,120]
[357527223,1744130751946,-215.92065652,0.00042075,30]
[357527224,1744130751977,-150.0,0.00042082,30]
[357527225,1744130752012,-150.0,0.00042092,30]
[357527226,1744130752039,-157.040811,0.00042098,120]
[357527227,1744130752069,-215.92065652,0.00042122,30]
[357527228,1744130752097,-150.0,0.00042128,120]
[357527229,1744130752124,-150.0,0.00042132,30]
[357527230,1744130752152,-162.96796277,0.00042137,120]
[357527231,1744130752181,-150.0,0.00042167,30]
[357527232,1744130752213,-215.92065652,0.00042168,30]
[357527233,1744130752243,-157.040811,0.00042198,120]
[357527234,1744130752272,-150.0,0.00042213,30]
[357527235,1744130752300,-215.92065652,0.00042215,30]
[357527236,1744130752328,-150.0,0.00042241,30]
[357527237,1744130752356,-16792.103529,0.00042257,30]
[357527238,1744130752384,-215.92065652,0.00042261,30]
[357527239,1744130752413,-150.0,0.00042267,120]
[357527240,1744130752442,-155.040811,0.00042298,120]
[357527241,1744130752474,-215.92065652,0.00042308,30]
[357527242,1744130752507,-150.0,0.00042315,30]
[357527243,1744130752534,-150.0,0.00042345,30]
[357527244,1744130752561,-215.92065652,0.00042354,30]
[357527245,1744130752589,-198.023823,0.00042377,120]
[357527246,1744130752616,-150.0,0.00042389,30]
[357527247,1744130752644,-157.040811,0.00042398,120]
[357527248,1744130752671,-215.92065652,0.00042401,30]
[357527249,1744130752700,-215.92065652,0.00042447,30]
[357527250,1744130752726,-150.0,0.00042464,30]
[357527251,1744130752752,-150.0,0.00042476,30]
[357527252,1744130752778,-150.0,0.00042486,30]
[357527253,1744130752804,-215.92065652,0.00042494,30]
[357527254,1744130752831,-157.040811,0.00042498,120]
[357527255,1744130752858,-30851.98,0.000425,60]
[357527256,1744130752885,-150.0,0.00042538,30]
[357527257,1744130752910,-215.92065652,0.0004254,30]
[357527258,1744130752936,-215.92065652,0.00042587,30]
[357527259,1744130752966,-150.0,0.00042607,120]
[357527260,1744130752996,-150.0,0.00042608,30]
[357527261,1744130753024,-150.0,0.00042612,30]
[357527262,1744130753052,-215.92065652,0.00042633,30]
[357527263,1744130753079,-215.92065652,0.0004268,30]
[357527264,1744130753106,-150.0,0.00042686,30]
[357527265,1744130753132,-3652.27481423,0.00042706,120]
[357527266,1744130753357,-215.92065652,0.00042726,30]
[357527267,1744130753387,-150.0,0.00042739,30]
[357527268,1744130753417,-500.0,0.0004274,30]
[357527269,1744130753446,-404.0,0.00042741,120]
[357527270,1744130753479,-150.0,0.00042761,30]
[357527271,1744130753511,-215.92065652,0.00042773,30]
[357527272,1744130753541,-150.0,0.00042795,120]
[357527273,1744130753569,-943226.87931161,0.000428,120]
[357527274,1744130753600,-1000.0,0.000428,30]
[357527275,1744130753630,-568722.86227708,0.000428,120]
[357527277,1744130773058,-500.0,0.00039235,60]
[357527278,1744130773088,-500.0,0.00040331,60]
[357527279,1744130773124,-500.0,0.00041427,60]
[357527280,1744130773156,-310.98150497,0.00042523,60]
[357527281,1744130773187,-1235668.97392698,0.000428,120]
[357527282,1744130773213,-213.0,0.000428,30]
[357527283,1744130773247,-215.92065652,0.00042819,30]
[357527284,1744130773275,-1030.58818721,0.0004285,30]
[357527285,1744130773303,-3066.599999,0.0004285,40]
[357527286,1744130773333,-215.92065652,0.00042866,30]
[357527287,1744130773361,-150.0,0.00042871,30]
[357527288,1744130773389,-2000.0,0.00042874,31]
[357527289,1744130773694,-150.0,0.00042891,120]
[357527290,1744130773723,-150.0,0.000429,120]
[357527291,1744130773754,-201.0,0.000429,120]
[357527292,1744130773783,-180.0,0.000429,90]
[357527293,1744130773811,-57645.20133617,0.000429,30]
[357527294,1744130773839,-215.92065652,0.00042912,30]
[357527295,1744130773867,-555.0,0.0004292,120]
[357527296,1744130773894,-3444.0,0.0004293,30]
[357527297,1744130773921,-300.765,0.00042932,30]
[357527298,1744130773948,-165.7062299,0.00042932,30]
[357527299,1744130773976,-15000.0,0.00042933,30]
[357527300,1744130774007,-299.857,0.00042934,30]
[357527301,1744130774035,-152.0,0.00042936,30]
[357527302,1744130774063,-1008.89,0.00042936,30]
[357527303,1744130774092,-1000.0,0.00042936,30]
[357527304,1744130774119,-2000.0,0.00042936,30]
[357527305,1744130774147,-208.78682617,0.00042936,30]
[357527306,1744130774176,-1024.66,0.0004294,120]
[357527307,1744130774205,-1039.02,0.00042944,30]
[357527308,1744130774236,-150.0,0.00042956,120]
[357527309,1744130774265,-215.92065652,0.00042959,30]
[357527310,1744130774293,-20000.0,0.0004299,120]
[357527311,1744130774321,-900.0,0.00043,44]
[357527312,1744130774351,-30851.98,0.00043,60]
[357527313,1744130774380,-60664.04,0.00043,90]
[357527314,1744130774407,-6430.93161491,0.00043,30]
[357527315,1744130774436,-864.47449287,0.00043,100]
[357527316,1744130774464,-150.0,0.00043002,30]
[357527317,1744130774496,-215.92065652,0.00043005,30]
[357527318,1744130774523,-500.0,0.00043038,30]
[357527319,1744130774550,-500.0,0.00043071,30]
[357527320,1744130774578,-500.0,0.00043071,30]
[357527321,1744130774604,-500.0,0.00043071,30]
[357527322,1744130774630,-500.0,0.00043071,30]
[357527323,1744130774656,-500.0,0.00043071,30]
[357527324,1744130774683,-500.0,0.00043071,30]
[357527325,1744130774710,-500.0,0.00043071,30]
[357527326,1744130774738,-500.0,0.00043071,30]
[357527327,1744130774765,-500.0,0.00043071,30]
[357527328,1744130774792,-500.0,0.00043071,30]
[357527329,1744130774819,-500.0,0.00043071,30]
[357527330,1744130774846,-500.0,0.00043071,30]
[357527331,1744130774872,-500.0,0.00043071,30]
[357527332,1744130774899,-500.0,0.00043071,30]
[357527333,1744130774924,-848.89016863,0.00043071,30]
[357527334,1744130774951,-500.0,0.00043071,30]
[357527335,1744130774978,-500.0,0.00043071,30]
[357527336,1744130775009,-500.0,0.00043071,30]
[357527337,1744130775037,-500.0,0.00043071,30]
[357527338,1744130775066,-500.0,0.00043071,30]
[357527339,1744130775094,-500.0,0.00043071,30]
[357527340,1744130775122,-500.0,0.00043071,30]
[357527341,1744130775149,-500.0,0.00043071,30]
[357527342,1744130775175,-500.0,0.00043071,30]
[357527343,1744130775202,-500.0,0.00043071,30]
[357527344,1744130775229,-500.0,0.00043071,30]
[357527345,1744130775257,-500.0,0.00043071,30]
[357527346,1744130775284,-554.98212875,0.00043071,30]
[357527347,1744130775310,-500.0,0.00043071,30]
[357527348,1744130775338,-500.0,0.00043071,30]
[357527349,1744130775364,-500.0,0.00043071,30]
[357527350,1744130775391,-500.0,0.00043071,30]
[357527351,1744130775419,-500.0,0.00043071,30]
[357527352,1744130775447,-500.0,0.00043071,30]
[357527353,1744130775474,-500.0,0.00043071,30]
[357527354,1744130775505,-500.0,0.00043071,30]
[357527355,1744130775532,-500.0,0.00043071,30]
[357527356,1744130775560,-500.0,0.00043071,30]
[357527357,1744130775589,-500.0,0.00043071,30]
[357527358,1744130775616,-500.0,0.00043071,30]
[357527359,1744130775644,-500.0,0.00043071,30]
[357527360,1744130775670,-500.0,0.00043071,30]
[357527361,1744130775698,-500.0,0.00043071,30]
[357527362,1744130775726,-500.0,0.00043071,30]
[357527363,1744130775755,-625.0,0.00043071,30]
[357527364,1744130775781,-625.0,0.00043071,30]
[357527365,1744130775807,-625.0,0.00043071,30]
[357527366,1744130775833,-625.0,0.00043071,30]
[357527367,1744130775860,-625.0,0.00043071,30]
[357527368,1744130775886,-625.0,0.00043071,30]
[357527369,1744130775912,-625.0,0.00043071,30]
[357527370,1744130775939,-1700.0,0.00043071,60]
[357527371,1744130775965,-625.0,0.00043071,30]
[357527372,1744130775995,-625.0,0.00043071,30]
[357527373,1744130776023,-625.0,0.00043071,30]
[357527374,1744130776050,-625.0,0.00043071,30]
[357527375,1744130776077,-625.0,0.00043071,30]
[357527376,1744130776105,-625.0,0.00043071,30]
[357527377,1744130776133,-625.0,0.00043071,30]
[357527378,1744130776160,-625.0,0.00043071,30]
[357527379,1744130776190,-625.0,0.00043071,30]
[357527380,1744130776218,-625.0,0.00043071,30]
[357527381,1744130776246,-625.0,0.00043071,30]
[357527382,1744130776274,-625.0,0.00043071,30]
[357527383,1744130776508,-631.59965438,0.00043071,30]
[357527384,1744130776538,-500.0,0.00043071,30]
[357527385,1744130776568,-500.0,0.00043071,30]
[357527386,1744130776597,-500.0,0.00043071,30]
[357527387,1744130776625,-500.0,0.00043071,30]
[357527388,1744130776653,-500.0,0.00043071,30]
[357527389,1744130776680,-500.0,0.00043071,30]
[357527390,1744130776709,-500.0,0.00043071,30]
[357527391,1744130776741,-500.0,0.00043071,30]
[357527392,1744130776769,-500.0,0.00043071,30]
[357527393,1744130776797,-500.0,0.00043071,30]
[357527394,1744130776825,-988.97963752,0.00043071,30]
[357527395,1744130776858,-57692.8405165,0.00043071,30]
[357527396,1744130776888,-150.0,0.00043134,30]
[357527397,1744130776916,-166.0,0.00043151,90]
[357527398,1744130776944,-500.0,0.00043153,30]
[357527399,1744130776973,-150.0,0.00043192,120]
[357527400,1744130777006,-500.0,0.00043198,30]
[357527401,1744130777037,-150.0,0.00043265,30]
[357527402,1744130777066,-700.0,0.00043313,30]
[357527403,1744130777095,-500.0,0.00043348,30]
[357527404,1744130777124,-500.0,0.00043351,30]
[357527405,1744130777152,-150.0,0.00043387,120]
[357527406,1744130777181,-150.0,0.00043397,30]
[357527407,1744130777209,-10000.0,0.000434,120]
[357527408,1744130777243,-500.0,0.00043439,30]
[357527409,1744130777277,-150.0,0.00043472,120]
[357527410,1744130777306,-700.0,0.00043476,30]
[357527411,1744130777334,-700.0,0.00043494,30]
[357527412,1744130777362,-1200.0,0.00043525,30]
[357527413,1744130777390,-150.0,0.00043528,30]
[357527414,1744130777417,-700.0,0.00043536,30]
[357527415,1744130777446,-30851.98,0.000436,60]
[357527416,1744130777475,-30851.98,0.000436,60]
[357527417,1744130777506,-150.0,0.00043618,120]
[357527418,1744130777534,-700.0,0.00043618,30]
[357527419,1744130777561,-150.0,0.0004366,30]
[357527420,1744130777588,-500.0,0.00043685,30]
[357527421,1744130777614,-287.48025054,0.000437,120]
[357527422,1744130777642,-150.0,0.00043719,120]
[357527423,1744130777668,-700.0,0.0004378,30]
[357527424,1744130777698,-150.0,0.00043791,30]